[Event "Elitserien 2019/2020, round 7-9"]
[Site "Elite stadshotellet, Kungsgatan 6, Vaxjo, Sweden"]
[Date "2020.10.17"]
[Round "2.16"]
[White "Thorn, Eric"]
[Black "Trost, Edvin"]
[Result "1-0"]
[TimeControl "90 minutes for 40 moves + 30 minutes for the rest of the game + 30 seconds per move from move one."]
[WhiteTitle "FM"]
[BlackTitle "CM"]
[WhiteFideId "1710729"]
[BlackFideId "1729519"]
[WhiteElo "2262"]
[BlackElo "2111"]

1. d4 {[%clk 01:30:37]} {[%emt 00:00:22]} Nf6 {[%clk 01:30:39]} {[%emt
00:00:22]} 2. c4 {[%clk 01:30:24]} {[%emt 00:00:43]} e6 {[%clk 01:30:39]}
{[%emt 00:00:30]} 3. Nf3 {[%clk 01:30:12]} {[%emt 00:00:41]} d5 {[%clk
01:31:01]} {[%emt 00:00:09]} 4. Nc3 {[%clk 01:29:34]} {[%emt 00:01:08]} c5
{[%clk 01:30:37]} {[%emt 00:00:55]} 5. cxd5 {[%clk 01:22:51]} {[%emt 00:07:14]}
Nxd5 {[%clk 01:30:38]} {[%emt 00:00:28]} 6. e4 {[%clk 01:19:32]} {[%emt
00:03:47]} Nxc3 {[%clk 01:30:59]} {[%emt 00:00:12]} 7. bxc3 {[%clk 01:19:58]}
{[%emt 00:00:04]} cxd4 {[%clk 01:31:20]} {[%emt 00:00:09]} 8. cxd4 {[%clk
01:20:24]} {[%emt 00:00:04]} Bb4+ {[%clk 01:31:33]} {[%emt 00:00:17]} 9. Bd2
{[%clk 01:20:49]} {[%emt 00:00:05]} Bxd2+ {[%clk 01:31:45]} {[%emt 00:00:18]}
10. Qxd2 {[%clk 01:21:14]} {[%emt 00:00:05]} O-O {[%clk 01:31:43]} {[%emt
00:00:31]} 11. Bd3 {[%clk 01:21:10]} {[%emt 00:00:35]} b6 {[%clk 01:26:54]}
{[%emt 00:05:20]} 12. O-O {[%clk 01:17:28]} {[%emt 00:04:11]} Bb7 {[%clk
01:25:21]} {[%emt 00:02:03]} 13. Rfc1 {[%clk 01:06:59]} {[%emt 00:10:59]} Nd7
{[%clk 01:20:27]} {[%emt 00:05:23]} 14. a4 {[%clk 01:06:33]} {[%emt 00:00:56]}
a5 {[%clk 01:15:13]} {[%emt 00:05:44]} 15. Qe3 {[%clk 00:56:40]} {[%emt
00:10:22]} Rc8 {[%clk 01:03:20]} {[%emt 00:12:24]} 16. e5 {[%clk 00:50:45]}
{[%emt 00:06:25]} Bxf3 {[%clk 00:52:02]} {[%emt 00:11:48]} 17. Qxf3 {[%clk
00:51:04]} {[%emt 00:00:11]} Qg5 {[%clk 00:52:11]} {[%emt 00:00:21]} 18. Rd1
{[%clk 00:47:24]} {[%emt 00:04:09]} Nb8 {[%clk 00:34:54]} {[%emt 00:17:47]} 19.
Qe4 {[%clk 00:45:30]} {[%emt 00:02:23]} g6 {[%clk 00:33:31]} {[%emt 00:01:54]}
20. h4 {[%clk 00:30:40]} {[%emt 00:14:50]} Qe7 {[%clk 00:26:27]} 21. Bb5 {[%clk
00:25:44]} {[%emt 00:13:16]} Rfd8 {[%clk 00:22:14]} 22. Rac1 {[%clk 00:25:44]}
Kg7 {[%clk 00:22:14]} {[%emt 00:05:57]} 23. g3 {[%clk 00:23:23]} h5 {[%clk
00:20:13]} {[%emt 00:05:21]} 24. Qf4 {[%clk 00:15:25]} Kh7 {[%clk 00:13:52]}
{[%emt 00:15:19]} 25. Qf6 {[%clk 00:08:40]} Rc7 {[%clk 00:11:18]} {[%emt
00:10:20]} 26. Rxc7 {[%clk 00:06:27]} Qxc7 {[%clk 00:11:47]} {[%emt 00:02:44]}
27. g4 {[%clk 00:06:17]} {[%emt 00:00:39]} Rf8 {[%clk 00:04:39]} {[%emt
00:07:38]} 28. gxh5 {[%clk 00:06:02]} {[%emt 00:00:44]} Qc2 {[%clk 00:04:45]}
{[%emt 00:00:25]} 29. Qf3 {[%clk 00:03:11]} {[%emt 00:03:21]} Qf5 {[%clk
00:02:25]} {[%emt 00:02:51]} 30. hxg6+ {[%clk 00:03:29]} Qxg6+ {[%clk
00:02:13]} {[%emt 00:00:54]} 31. Kf1 {[%clk 00:01:41]} Kh8 {[%clk 00:02:09]}
{[%emt 00:02:52]} 32. Qf6+ {[%clk 00:00:55]} Qxf6 {[%clk 00:02:25]} {[%emt
00:01:30]} 33. exf6 {[%clk 00:01:23]} Rd8 {[%clk 00:02:29]} {[%emt 00:00:29]}
34. Rc1 {[%emt 00:00:55]} Nd7 35. Rc7 {[%clk 00:01:03]} {[%emt 00:00:39]} Nxf6
{[%clk 00:03:02]} {[%emt 00:00:13]} 36. Rxf7 {[%clk 00:01:28]} {[%emt
00:00:05]} Nd5 {[%emt 00:02:04]} 37. Rb7 {[%clk 00:00:42]} {[%emt 00:00:16]}
Rc8 {[%clk 00:00:44]} {[%emt 00:02:14]} 38. Bd7 {[%clk 00:00:40]} {[%emt
00:00:32]} Rc1+ {[%clk 00:00:31]} {[%emt 00:00:44]} 39. Kg2 {[%clk 00:00:47]}
{[%emt 00:00:23]} Rc4 {[%clk 00:00:51]} {[%emt 00:00:10]} 40. Kg3 {[%clk
00:00:50]} {[%emt 00:00:27]} Rxd4 {[%clk 00:00:32]} {[%emt 00:00:50]} 41. Bxe6
{[%clk 00:27:11]} {[%emt 00:04:08]} Nf6 {[%emt 00:04:11]} 42. Rxb6 {[%clk
00:24:59]} {[%emt 00:02:07]} Rxa4 {[%clk 00:27:50]} {[%emt 00:00:07]} 43. Bf5
{[%clk 00:21:06]} {[%emt 00:04:21]} Kg7 {[%clk 00:22:04]} {[%emt 00:06:16]} 44.
Rb7+ {[%clk 00:19:56]} {[%emt 00:01:40]} Kf8 {[%clk 00:20:46]} {[%emt
00:01:48]} 45. f3 {[%clk 00:18:31]} {[%emt 00:01:54]} Nh5+ {[%clk 00:18:45]}
{[%emt 00:02:32]} 46. Kh3 {[%emt 00:00:25]} Nf4+ {[%clk 00:18:55]} {[%emt
00:00:08]} 47. Kg4 {[%clk 00:16:13]} {[%emt 00:03:05]} Ne6+ {[%clk 00:19:15]}
{[%emt 00:00:09]} 48. Kg3 {[%clk 00:14:21]} {[%emt 00:02:22]} Nd8 {[%clk
00:12:49]} {[%emt 00:06:54]} 49. Ra7 {[%emt 00:11:38]} Rb4 {[%clk 00:02:06]}
{[%emt 00:00:48]} 50. Rxa5 {[%emt 00:05:16]} Rb7 {[%emt 00:00:03]} 51. h5
{[%clk 00:08:57]} {[%emt 00:00:39]} Kg7 {[%clk 00:00:51]} {[%emt 00:02:00]} 52.
Ra6 {[%clk 00:07:31]} {[%emt 00:01:56]} Nf7 {[%clk 00:00:31]} {[%emt 00:00:50]}
53. Rg6+ {[%clk 00:07:50]} {[%emt 00:00:11]} Kh8 {[%clk 00:00:32]} {[%emt
00:00:30]} 54. h6 {[%clk 00:05:35]} {[%emt 00:02:44]} Rb5 {[%clk 00:00:31]}
{[%emt 00:00:32]} 55. Rf6 {[%clk 00:05:35]} {[%emt 00:00:28]} Rb7 {[%clk
00:00:32]} {[%emt 00:00:30]} 56. Re6 {[%clk 00:02:36]} {[%emt 00:03:28]} Rb8
{[%clk 00:00:37]} {[%emt 00:00:26]} 57. Kh4 {[%clk 00:01:58]} {[%emt 00:01:07]}
Rg8 {[%clk 00:00:32]} {[%emt 00:00:36]} 58. f4 {[%clk 00:01:54]} {[%emt
00:00:33]} Rd8 {[%clk 00:00:32]} {[%emt 00:00:30]} 59. Kh5 {[%clk 00:01:32]}
{[%emt 00:00:51]} Rg8 {[%clk 00:00:31]} {[%emt 00:00:32]} 60. Re7 {[%clk
00:01:28]} {[%emt 00:00:33]} Rf8 {[%clk 00:00:32]} {[%emt 00:00:30]} 61. Kg6
{[%clk 00:01:15]} {[%emt 00:00:42]} Nd8 {[%clk 00:00:31]} {[%emt 00:00:32]} 62.
Be4 {[%clk 00:00:41]} {[%emt 00:01:05]} Nf7 {[%clk 00:00:31]} {[%emt 00:00:30]}
63. Bd5 {[%clk 00:00:36]} {[%emt 00:00:35]} Ne5+ {[%clk 00:00:32]} {[%emt
00:00:30]} 64. Rxe5 {[%clk 00:00:51]} {[%emt 00:00:14]} Rd8 {[%clk 00:00:32]}
{[%emt 00:00:30]} 65. Bf7 {[%clk 00:00:42]} {[%emt 00:00:39]} Rd6+ {[%clk
00:00:49]} {[%emt 00:00:13]} 66. Kg5 {[%clk 00:00:49]} {[%emt 00:00:23]} Kh7
{[%clk 00:00:32]} {[%emt 00:00:47]} 67. Bh5 {[%clk 00:01:01]} {[%emt 00:00:17]}
Kg8 {[%clk 00:00:31]} {[%emt 00:00:31]} 68. Bg6 {[%clk 00:01:16]} {[%emt
00:00:15]} Rd8 {[%clk 00:00:32]} {[%emt 00:00:27]} 69. Re8+ {[%clk 00:01:36]}
{[%emt 00:00:12]} Rxe8 {[%clk 00:00:57]} {[%emt 00:00:06]} 70. Bxe8 {[%clk
00:02:01]} {[%emt 00:00:04]} Kh7 {[%clk 00:01:24]} {[%emt 00:00:03]} 71. Bg6+
{[%clk 00:02:09]} {[%emt 00:00:22]} Kg8 {[%clk 00:01:45]} {[%emt 00:00:09]} 72.
Kf6 {[%clk 00:02:34]} {[%emt 00:00:05]} Kh8 {[%clk 00:02:11]} {[%emt 00:00:05]}
73. Ke7 {[%clk 00:02:56]} {[%emt 00:00:07]} Kg8 {[%clk 00:02:34]} {[%emt
00:00:07]} 74. f5 {[%clk 00:03:16]} {[%emt 00:00:11]} 1-0

[Event "Elitserien 2019/2020, round 7-9"]
[Site "Elite stadshotellet, Kungsgatan 6, Vaxjo, Sweden"]
[Date "2020.10.18"]
[Round "3.1"]
[White "Hillarp Persson, Tiger"]
[Black "Blomqvist, Erik"]
[Result "1/2-1/2"]
[TimeControl "90 minutes for 40 moves + 30 minutes for the rest of the game + 30 seconds per move from move one."]
[WhiteTitle "GM"]
[BlackTitle "GM"]
[WhiteFideId "1700812"]
[BlackFideId "1709437"]
[WhiteElo "2546"]
[BlackElo "2539"]

1. c4 {[%clk 01:30:38]} {[%emt 00:00:21]} e5 {[%clk 01:30:40]} {[%emt
00:00:21]} 2. g3 {[%clk 01:30:59]} {[%emt 00:00:10]} d5 {[%clk 01:29:39]}
{[%emt 00:01:30]} 3. cxd5 {[%clk 01:31:06]} {[%emt 00:00:24]} Qxd5 {[%clk
01:30:04]} {[%emt 00:00:05]} 4. Nf3 {[%clk 01:31:08]} {[%emt 00:00:27]} Nc6
{[%clk 01:30:12]} {[%emt 00:00:22]} 5. Nc3 {[%clk 01:30:52]} {[%emt 00:00:46]}
Qd8 {[%clk 01:30:34]} {[%emt 00:00:09]} 6. Bg2 {[%clk 01:30:37]} {[%emt
00:00:45]} Nf6 {[%clk 01:30:43]} {[%emt 00:00:21]} 7. O-O {[%clk 01:28:40]}
{[%emt 00:02:26]} h6 {[%clk 01:30:35]} {[%emt 00:00:38]} 8. a3 {[%clk
01:19:04]} {[%emt 00:10:07]} a5 {[%clk 01:30:20]} {[%emt 00:00:45]} 9. e3
{[%clk 01:17:48]} {[%emt 00:01:46]} Bd6 {[%clk 01:29:34]} {[%emt 00:01:17]} 10.
d4 {[%clk 01:11:58]} {[%emt 00:06:20]} O-O {[%clk 01:29:41]} {[%emt 00:00:23]}
11. h3 {[%clk 01:03:34]} {[%emt 00:08:53]} Re8 {[%clk 01:25:56]} {[%emt
00:04:15]} 12. d5 {[%clk 00:55:56]} {[%emt 00:08:08]} Na7 {[%clk 01:23:20]}
{[%emt 00:03:06]} 13. e4 {[%clk 00:51:33]} {[%emt 00:04:52]} Bd7 {[%clk
01:17:05]} {[%emt 00:06:45]} 14. Re1 {[%clk 00:49:18]} {[%emt 00:02:44]} b5
{[%clk 01:15:12]} {[%emt 00:02:24]} 15. Be3 {[%clk 00:40:58]} {[%emt 00:08:49]}
Qe7 {[%clk 01:05:42]} {[%emt 00:10:00]} 16. Nd2 {[%clk 00:36:16]} {[%emt
00:05:12]} Bc5 {[%clk 01:04:16]} {[%emt 00:01:56]} 17. Bxc5 {[%clk 00:35:45]}
{[%emt 00:01:01]} Qxc5 {[%clk 01:04:23]} {[%emt 00:00:23]} 18. Rc1 {[%clk
00:36:00]} {[%emt 00:00:14]} Qb6 {[%clk 01:02:30]} {[%emt 00:02:24]} 19. b4
{[%clk 00:35:19]} {[%emt 00:01:11]} axb4 {[%clk 00:56:36]} {[%emt 00:06:25]} 20.
axb4 {[%clk 00:35:06]} {[%emt 00:00:42]} Qd4 {[%clk 00:55:14]} {[%emt
00:01:52]} 21. Ne2 {[%clk 00:24:45]} {[%emt 00:10:50]} Qxb4 {[%clk 00:55:14]}
{[%emt 00:00:31]} 22. Rxc7 {[%clk 00:25:07]} {[%emt 00:00:07]} Nc8 {[%clk
00:53:51]} {[%emt 00:01:52]} 23. Nc1 {[%clk 00:23:32]} {[%emt 00:02:04]} Ra3
{[%clk 00:50:08]} {[%emt 00:04:13]} 24. Qc2 {[%clk 00:14:36]} {[%emt 00:09:27]}
Nd6 {[%clk 00:50:07]} {[%emt 00:00:31]} 25. Nd3 {[%clk 00:13:16]} {[%emt
00:01:50]} Qa5 {[%clk 00:48:47]} {[%emt 00:01:49]} 26. Rc1 {[%clk 00:12:00]}
{[%emt 00:01:45]} Ra2 {[%clk 00:37:45]} {[%emt 00:11:33]} 27. Nb3 {[%clk
00:12:12]} {[%emt 00:00:19]} Qa3 {[%clk 00:37:48]} {[%emt 00:00:27]} 28. Qb1
{[%clk 00:09:21]} {[%emt 00:03:21]} b4 {[%clk 00:28:51]} {[%emt 00:09:27]} 29.
Nbc5 {[%clk 00:06:56]} {[%emt 00:02:55]} Nb5 {[%clk 00:28:40]} {[%emt
00:00:41]} 30. Nxd7 {[%clk 00:05:10]} {[%emt 00:02:16]} Nxc7 {[%clk 00:28:25]}
{[%emt 00:00:45]} 31. N7xe5 {[%clk 00:03:33]} {[%emt 00:02:07]} Nb5 {[%clk
00:25:03]} {[%emt 00:03:52]} 32. Qxb4 {[%clk 00:01:38]} {[%emt 00:02:25]} Qxb4
{[%clk 00:20:58]} {[%emt 00:04:35]} 33. Nxb4 {[%clk 00:02:02]} {[%emt
00:00:06]} Ra4 {[%clk 00:20:35]} {[%emt 00:00:53]} 34. Ned3 {[%clk 00:01:13]}
{[%emt 00:01:19]} Nxe4 {[%clk 00:20:40]} {[%emt 00:00:25]} 35. Bxe4 {[%clk
00:01:13]} {[%emt 00:00:30]} Rxe4 {[%clk 00:21:02]} {[%emt 00:00:08]} 36. Rc8+
{[%clk 00:01:30]} {[%emt 00:00:13]} Kh7 {[%clk 00:21:27]} {[%emt 00:00:04]} 37.
Rb8 {[%clk 00:01:49]} {[%emt 00:00:11]} Raxb4 {[%clk 00:13:23]} {[%emt
00:08:34]} 38. Nxb4 {[%clk 00:02:04]} {[%emt 00:00:14]} Rxb4 {[%clk 00:13:49]}
{[%emt 00:00:04]} 39. d6 {[%clk 00:02:21]} {[%emt 00:00:12]} Rd4 {[%clk
00:14:05]} {[%emt 00:00:14]} 40. Rxb5 {[%clk 00:02:44]} {[%emt 00:00:08]}
1/2-1/2

[Event "Elitserien 2019/2020, round 7-9"]
[Site "Elite stadshotellet, Kungsgatan 6, Vaxjo, Sweden"]
[Date "2020.10.18"]
[Round "3.2"]
[White "Socko, Bartosz"]
[Black "Smith, Axel"]
[Result "1-0"]
[TimeControl "90 minutes for 40 moves + 30 minutes for the rest of the game + 30 seconds per move from move one."]
[WhiteTitle "GM"]
[BlackTitle "GM"]
[WhiteFideId "1107038"]
[BlackFideId "1707930"]
[WhiteElo "2619"]
[BlackElo "2469"]

1. d4 {[%clk 01:30:57]} {[%emt 00:00:02]} d5 {[%clk 01:29:56]} {[%emt
00:01:05]} 2. c4 {[%clk 01:31:20]} {[%emt 00:00:07]} c5 {[%clk 01:30:22]}
{[%emt 00:00:04]} 3. dxc5 {[%clk 01:30:10]} {[%emt 00:01:40]} d4 {[%clk
01:29:38]} {[%emt 00:01:14]} 4. a3 {[%clk 01:23:28]} {[%emt 00:07:11]} e5
{[%clk 01:26:27]} {[%emt 00:03:41]} 5. Nf3 {[%clk 01:23:03]} {[%emt 00:00:55]}
Nc6 {[%clk 01:25:23]} {[%emt 00:01:34]} 6. e3 {[%clk 01:18:37]} {[%emt
00:04:57]} Bxc5 {[%clk 01:24:26]} {[%emt 00:01:27]} 7. b4 {[%clk 01:17:36]}
{[%emt 00:01:30]} Bb6 {[%clk 01:23:33]} {[%emt 00:01:23]} 8. c5 {[%clk
01:14:25]} {[%emt 00:03:40]} Bc7 {[%clk 01:23:13]} {[%emt 00:00:51]} 9. Bb2
{[%clk 01:06:15]} {[%emt 00:08:39]} dxe3 {[%clk 00:43:04]} {[%emt 00:40:40]} 10.
Qxd8+ {[%clk 01:06:10]} {[%emt 00:00:35]} Nxd8 {[%clk 00:43:21]} {[%emt
00:00:13]} 11. Nxe5 {[%clk 01:04:57]} {[%emt 00:01:43]} exf2+ {[%clk 00:39:47]}
{[%emt 00:04:04]} 12. Kxf2 {[%clk 01:03:21]} {[%emt 00:02:06]} Ne7 {[%clk
00:39:59]} {[%emt 00:00:17]} 13. Nd2 {[%clk 01:00:13]} {[%emt 00:03:37]} O-O
{[%clk 00:39:28]} {[%emt 00:01:02]} 14. Bc4 {[%clk 01:00:33]} {[%emt 00:00:10]}
Ndc6 {[%clk 00:36:16]} {[%emt 00:03:42]} 15. Ndf3 {[%clk 00:57:32]} {[%emt
00:03:31]} Nxe5 {[%clk 00:35:46]} {[%emt 00:01:00]} 16. Bxe5 {[%clk 00:57:42]}
{[%emt 00:00:20]} Bxe5 {[%clk 00:35:45]} {[%emt 00:00:32]} 17. Nxe5 {[%clk
00:58:06]} {[%emt 00:00:05]} Be6 {[%clk 00:32:14]} {[%emt 00:04:00]} 18. Rhe1
{[%clk 00:55:36]} {[%emt 00:03:00]} Nc6 {[%clk 00:24:30]} {[%emt 00:08:15]} 19.
Nxc6 {[%clk 00:52:44]} {[%emt 00:03:22]} bxc6 {[%clk 00:23:57]} {[%emt
00:01:04]} 20. Ba6 {[%clk 00:52:21]} {[%emt 00:00:53]} Rad8 {[%clk 00:12:49]}
{[%emt 00:11:39]} 21. Rad1 {[%clk 00:51:48]} {[%emt 00:01:02]} Bb3 {[%clk
00:09:59]} {[%emt 00:03:21]} 22. Rxd8 {[%clk 00:51:25]} {[%emt 00:00:53]} Rxd8
{[%clk 00:10:24]} {[%emt 00:00:04]} 23. Re7 {[%clk 00:49:19]} {[%emt 00:02:36]}
Kf8 {[%clk 00:10:15]} {[%emt 00:00:40]} 24. Rxa7 {[%clk 00:49:35]} {[%emt
00:00:13]} Rd2+ {[%clk 00:10:15]} {[%emt 00:00:31]} 25. Ke3 {[%clk 00:48:58]}
{[%emt 00:01:06]} Rxg2 {[%clk 00:10:12]} {[%emt 00:00:33]} 26. Bb7 {[%clk
00:49:17]} {[%emt 00:00:10]} Rxh2 {[%clk 00:08:13]} {[%emt 00:02:30]} 27. Bxc6
{[%clk 00:49:40]} {[%emt 00:00:06]} Rh5 {[%clk 00:04:58]} {[%emt 00:03:46]} 28.
Bf3 {[%clk 00:46:49]} {[%emt 00:03:21]} Rh3 {[%clk 00:04:52]} {[%emt 00:00:37]}
29. Kf2 {[%clk 00:47:11]} {[%emt 00:00:07]} Rh2+ {[%clk 00:04:33]} {[%emt
00:00:49]} 30. Kg1 {[%clk 00:46:03]} 1-0

[Event "Elitserien 2019/2020, round 7-9"]
[Site "Elite stadshotellet, Kungsgatan 6, Vaxjo, Sweden"]
[Date "2020.10.18"]
[Round "3.3"]
[White "Cuenca Jimenez, Jose Fernando"]
[Black "Barkhagen, Jonas"]
[Result "1/2-1/2"]
[TimeControl "90 minutes for 40 moves + 30 minutes for the rest of the game + 30 seconds per move from move one."]
[WhiteTitle "GM"]
[BlackTitle "IM"]
[WhiteFideId "2255570"]
[BlackFideId "1700855"]
[WhiteElo "2538"]
[BlackElo "2430"]

1. c4 {[%clk 01:30:52]} {[%emt 00:00:06]} e5 {[%clk 01:29:47]} {[%emt
00:01:13]} 2. Nc3 {[%clk 01:30:40]} {[%emt 00:00:42]} Nf6 {[%clk 01:30:01]}
{[%emt 00:00:16]} 3. Nf3 {[%clk 01:30:56]} {[%emt 00:00:15]} Nc6 {[%clk
01:30:26]} {[%emt 00:00:05]} 4. e4 {[%clk 01:30:54]} {[%emt 00:00:32]} d6
{[%clk 01:27:07]} {[%emt 00:03:48]} 5. d4 {[%clk 01:31:12]} {[%emt 00:00:12]}
Bg4 {[%clk 01:26:16]} {[%emt 00:01:19]} 6. d5 {[%clk 01:31:19]} {[%emt
00:00:26]} Nd4 {[%clk 01:21:01]} {[%emt 00:05:44]} 7. Be2 {[%clk 01:31:38]}
{[%emt 00:00:11]} Bxf3 {[%clk 01:17:12]} {[%emt 00:04:19]} 8. Bxf3 {[%clk
01:31:48]} {[%emt 00:00:20]} c5 {[%clk 01:17:36]} {[%emt 00:00:05]} 9. dxc6
{[%clk 01:25:55]} {[%emt 00:06:24]} bxc6 {[%clk 01:17:52]} {[%emt 00:00:14]} 10.
Be3 {[%clk 01:20:31]} {[%emt 00:05:55]} c5 {[%clk 01:18:17]} {[%emt 00:00:05]}
11. Qa4+ {[%clk 01:18:15]} {[%emt 00:02:45]} Qd7 {[%clk 01:17:06]} {[%emt
00:01:39]} 12. Bd1 {[%clk 01:17:38]} {[%emt 00:01:08]} Be7 {[%clk 01:16:05]}
{[%emt 00:01:30]} 13. Qxd7+ {[%clk 01:15:05]} {[%emt 00:03:05]} Kxd7 {[%clk
01:11:29]} {[%emt 00:05:06]} 14. Ba4+ {[%clk 01:04:55]} {[%emt 00:10:39]} Kc8
{[%clk 01:10:10]} {[%emt 00:01:48]} 15. O-O-O {[%clk 00:42:02]} {[%emt
00:23:24]} Ng4 {[%clk 00:52:20]} {[%emt 00:18:20]} 16. Rdf1 {[%clk 00:36:53]}
{[%emt 00:05:40]} Rf8 {[%clk 00:51:51]} {[%emt 00:00:57]} 17. Bd2 {[%clk
00:34:21]} {[%emt 00:03:03]} Bd8 {[%clk 00:46:18]} {[%emt 00:06:02]} 18. Nb5
{[%clk 00:23:57]} {[%emt 00:10:55]} Be7 {[%clk 00:40:10]} {[%emt 00:06:37]} 19.
f3 {[%clk 00:22:45]} {[%emt 00:01:43]} Nf6 {[%clk 00:40:30]} {[%emt 00:00:09]}
20. Nxd4 {[%clk 00:19:02]} {[%emt 00:04:14]} exd4 {[%clk 00:38:56]} {[%emt
00:02:03]} 21. Bc2 {[%clk 00:19:11]} {[%emt 00:00:22]} Re8 {[%clk 00:30:25]}
{[%emt 00:09:00]} 22. f4 {[%clk 00:17:27]} {[%emt 00:02:14]} Ng4 {[%clk
00:20:30]} {[%emt 00:10:24]} 23. Rf3 {[%clk 00:15:08]} {[%emt 00:02:50]} Ne3
{[%clk 00:14:27]} {[%emt 00:06:32]} 24. Bxe3 {[%clk 00:13:38]} {[%emt
00:02:01]} dxe3 {[%clk 00:14:51]} {[%emt 00:00:05]} 25. Ba4 {[%clk 00:05:07]}
{[%emt 00:09:02]} Rd8 {[%clk 00:13:33]} {[%emt 00:01:48]} 26. Rxe3 {[%clk
00:04:38]} {[%emt 00:01:00]} Bf6 {[%clk 00:10:34]} {[%emt 00:03:28]} 27. Re2
{[%clk 00:04:52]} {[%emt 00:00:17]} Bd4 {[%clk 00:10:30]} {[%emt 00:00:33]} 28.
e5 {[%clk 00:04:29]} {[%emt 00:00:53]} dxe5 {[%clk 00:07:11]} {[%emt 00:03:50]}
29. fxe5 {[%clk 00:04:53]} {[%emt 00:00:06]} Rb8 {[%clk 00:07:30]} {[%emt
00:00:10]} 30. b3 {[%clk 00:00:37]} {[%emt 00:04:46]} Rb7 {[%clk 00:05:41]}
{[%emt 00:02:19]} 31. Kc2 {[%clk 00:00:49]} {[%emt 00:00:19]} Re7 {[%clk
00:05:50]} {[%emt 00:00:21]} 32. Rhe1 {[%clk 00:01:09]} {[%emt 00:00:10]} Kc7
{[%clk 00:06:12]} {[%emt 00:00:07]} 33. Re4 {[%clk 00:00:58]} {[%emt 00:00:42]}
Bf2 {[%clk 00:03:03]} {[%emt 00:03:38]} 34. R1e2 {[%clk 00:00:48]} {[%emt
00:00:41]} Rd4 {[%clk 00:03:08]} {[%emt 00:00:24]} 35. a3 {[%clk 00:00:35]}
{[%emt 00:00:45]} a5 {[%clk 00:02:00]} {[%emt 00:01:37]} 36. Bb5 {[%clk
00:00:36]} {[%emt 00:00:29]} Rxe4 {[%clk 00:01:59]} {[%emt 00:00:31]} 37. Rxe4
{[%clk 00:00:46]} {[%emt 00:00:21]} 1/2-1/2